fUST/lending_fUST_20241211
["ID","MTS","AMOUNT","RATE_DAILY","PERIOD"]
[344926627,1733886644582,-500.0,0.00029863,7]
[344926628,1733886644592,-500.0,0.00029863,7]
[344926630,1733886644602,-500.0,0.00029863,7]
[344926631,1733886644612,-500.0,0.00029863,7]
[344926632,1733886644622,-500.0,0.00029863,7]
[344926633,1733886644631,-500.0,0.00029863,7]
[344926634,1733886644641,-286.16652152,0.00029863,7]
[344926635,1733886644651,-500.0,0.00029863,7]
[344926636,1733886644660,-500.0,0.00029863,7]
[344926637,1733886644671,-500.0,0.00029863,7]
[344926638,1733886644681,-500.0,0.00029863,7]
[344926639,1733886644695,-500.0,0.00029863,7]
[344926640,1733886644705,-500.0,0.00029863,7]
[344926641,1733886644715,-500.0,0.00029863,7]
[344926642,1733886644725,-502.451843,0.00029863,7]
[344926643,1733886644734,-500.0,0.00029863,7]
[344926644,1733886644744,-500.0,0.00029863,7]
[344926645,1733886644754,-500.0,0.00029863,7]
[344926646,1733886644764,-500.0,0.00029863,7]
[344926647,1733886644774,-500.0,0.00029863,7]
[344926648,1733886644784,-500.0,0.00029863,7]
[344926649,1733886644794,-500.0,0.00029863,7]
[344926650,1733886644804,-500.0,0.00029863,7]
[344926651,1733886644814,-500.0,0.00029863,7]
[344926652,1733886644823,-500.0,0.00029863,7]
[344926653,1733886644832,-500.0,0.00029863,7]
[344926654,1733886644842,-500.0,0.00029863,7]
[344926655,1733886644851,-500.0,0.00029863,7]
[344926656,1733886644861,-500.0,0.00029863,7]
[344926657,1733886644870,-573.91742598,0.00029863,7]
[344926658,1733886644879,-579.9329722,0.00029863,7]
[344926659,1733886644889,-426.23998747,0.00029863,7]
[344926660,1733886644898,-500.0,0.00029863,7]
[344926661,1733886644908,-500.0,0.00029863,7]
[344926662,1733886644918,-502.50773844,0.00029863,7]
[344926663,1733886644928,-501.99299033,0.00029863,7]
[344926664,1733886644941,-500.0,0.00029863,7]
[344926665,1733886644951,-500.0,0.00029863,7]
[344926666,1733886644961,-505.92746658,0.00029863,7]
[344926667,1733886644971,-500.0,0.00029863,7]
[344926668,1733886644981,-500.0,0.00029863,7]
[344926669,1733886644991,-475.43616526,0.00029863,7]
[344926670,1733886645000,-500.0,0.00029863,7]
[344926671,1733886645010,-500.0,0.00029863,7]
[344926672,1733886645020,-500.0,0.00029863,7]
[344926673,1733886645029,-500.0,0.00029863,7]
[344926674,1733886645039,-500.0,0.00029863,7]
[344926675,1733886645049,-550.22946278,0.00029863,7]
[344926676,1733886645059,-508.41162889,0.00029863,7]
[344926677,1733886645068,-185.00686582,0.00029863,7]
[344926678,1733886645078,-500.0,0.00029863,7]
[344926679,1733886645087,-500.0,0.00029863,7]
[344926680,1733886645097,-500.0,0.00029863,7]
[344926681,1733886645106,-321.94123518,0.00029863,7]
[344926682,1733886645116,-523.47365382,0.00029863,7]
[344926683,1733886645129,-500.0,0.00029863,7]
[344926684,1733886645139,-504.09176038,0.00029863,7]
[344926685,1733886645149,-353.42282108,0.00029863,7]
[344926686,1733886645158,-500.0,0.00029863,7]
[344926687,1733886645170,-500.0,0.00029863,7]
[344926688,1733886645180,-500.0,0.00029863,7]
[344926689,1733886645196,-397.37931449,0.00029863,7]
[344926690,1733886645209,-295.56160784,0.00029863,7]
[344926691,1733886645221,-500.90704066,0.00029863,7]
[344926692,1733886645231,-500.0,0.00029863,7]
[344926693,1733886645242,-500.0,0.00029863,7]
[344926694,1733886645252,-500.0,0.00029863,7]
[344926695,1733886645263,-500.0,0.00029863,7]
[344926696,1733886645274,-500.0,0.00029863,7]
[344926697,1733886645285,-345.39203812,0.00029863,7]
[344926698,1733886645295,-500.0,0.00029863,7]
[344926699,1733886645306,-349.94032597,0.00029863,7]
[344926700,1733886645316,-500.0,0.00029863,7]
[344926701,1733886645327,-500.0,0.00029863,7]
[344926702,1733886645337,-500.0,0.00029863,7]
[344926703,1733886645347,-500.0,0.00029863,7]
[344926704,1733886645356,-248.96387594,0.00029863,7]
[344926705,1733886645366,-500.0,0.00029863,7]
[344926706,1733886645376,-416.09275202,0.00029863,7]
[344926707,1733886645386,-500.0,0.00029863,7]
[344926708,1733886645396,-500.0,0.00029863,7]
[344926709,1733886645406,-181.19839373,0.00029863,7]
[344926710,1733886645416,-478.78783351,0.00029863,7]
[344926711,1733886645426,-197.30649112,0.00029863,7]
[344926712,1733886645436,-500.0,0.00029863,7]
[344926713,1733886645450,-500.0,0.00029863,7]
[344926714,1733886645460,-254.67994525,0.00029863,7]
[344926715,1733886645469,-500.0,0.00029863,7]
[344926716,1733886645480,-500.0,0.00029863,7]
[344926717,1733886645490,-503.2859327,0.00029863,7]
[344926718,1733886645500,-500.0,0.00029863,7]
[344926719,1733886645510,-500.0,0.00029863,7]
[344926720,1733886645521,-198.63656689,0.00029863,7]
[344926721,1733886645531,-500.0,0.00029863,7]
[344926722,1733886645540,-500.0,0.00029863,7]
[344926723,1733886645551,-500.0,0.00029863,7]
[344926724,1733886645561,-327.13902298,0.00029863,7]
[344926725,1733886645571,-500.0,0.00029863,7]
[344926726,1733886645581,-500.0,0.00029863,7]
[344926727,1733886645591,-500.0,0.00029863,7]
[344926728,1733886645614,-500.0,0.00029863,7]
[344926729,1733886645624,-500.0,0.00029863,7]
[344926730,1733886645634,-500.0,0.00029863,7]
[344926731,1733886645645,-500.0,0.00029863,7]
[344926732,1733886645654,-507.11838912,0.00029863,7]
[344926733,1733886645664,-315.05092547,0.00029863,7]
[344926734,1733886645674,-500.0,0.00029863,7]
[344926735,1733886645684,-500.0,0.00029863,7]
[344926736,1733886645699,-500.0,0.00029863,7]
[344926737,1733886645714,-448.93585403,0.00029863,7]
[344926738,1733886645724,-500.0,0.00029863,7]
[344926739,1733886645734,-508.58746209,0.00029863,7]
[344926740,1733886645743,-591.63962351,0.00029863,7]
[344926741,1733886645752,-169.88,0.00029863,7]
[344926742,1733886645848,-1384.3,0.00029863,7]
[344926743,1733886645859,-1384.3,0.00029863,7]
[344926744,1733886645869,-1384.3,0.00029863,7]
[344926745,1733886645879,-1384.3,0.00029863,7]
[344926746,1733886645888,-1384.3,0.00029863,7]
[344926747,1733886645899,-1384.3,0.00029863,7]
[344926748,1733886645909,-1384.3,0.00029863,7]
[344926749,1733886645920,-500.0,0.00029863,7]
[344926750,1733886645930,-1384.3,0.00029863,7]
[344926751,1733886645943,-500.0,0.00029863,7]
[344926752,1733886645952,-1384.3,0.00029863,7]
[344926753,1733886645961,-1384.3,0.00029863,7]
[344926754,1733886645971,-500.0,0.00029863,7]
[344926755,1733886645981,-1384.3,0.00029863,7]
[344926756,1733886645991,-500.0,0.00029863,7]
[344926757,1733886646000,-500.0,0.00029863,7]
[344926758,1733886646010,-1384.3,0.00029863,7]
[344926759,1733886646020,-500.0,0.00029863,7]
[344926760,1733886646029,-1384.3,0.00029863,7]
[344926761,1733886646039,-500.0,0.00029863,7]
[344926762,1733886646049,-500.0,0.00029863,7]
[344926763,1733886646059,-1384.3,0.00029863,7]
[344926764,1733886646068,-500.0,0.00029863,7]
[344926765,1733886646078,-1272.02,0.00029863,7]
[344926766,1733886646087,-1384.3,0.00029863,7]
[344926767,1733886646097,-1272.02,0.00029863,7]
[344926768,1733886646106,-500.0,0.00029863,7]
[344926769,1733886646116,-500.0,0.00029863,7]
[344926770,1733886646126,-1384.3,0.00029863,7]
[344926771,1733886646139,-500.0,0.00029863,7]
[344926772,1733886646150,-1272.02,0.00029863,7]
[344926773,1733886646160,-508.00483774,0.00029863,7]
[344926774,1733886646170,-1272.02,0.00029863,7]
[344926775,1733886646180,-500.0,0.00029863,7]
[344926776,1733886646194,-1384.3,0.00029863,7]
[344926777,1733886646205,-1272.02,0.00029863,7]
[344926778,1733886646215,-1384.3,0.00029863,7]
[344926779,1733886646226,-1272.02,0.00029863,7]
[344926780,1733886646236,-1384.3,0.00029863,7]
[344926781,1733886646246,-1272.02,0.00029863,7]
[344926782,1733886646256,-1384.3,0.00029863,7]
[344926783,1733886646266,-502.81142216,0.00029863,7]
[344926784,1733886646276,-1272.02,0.00029863,7]
[344926785,1733886646285,-500.0,0.00029863,7]
[344926786,1733886646296,-1272.02,0.00029863,7]
[344926787,1733886646306,-500.0,0.00029863,7]
[344926788,1733886646316,-1272.02,0.00029863,7]
[344926789,1733886646325,-1384.3,0.00029863,7]
[344926790,1733886646335,-1272.02,0.00029863,7]
[344926791,1733886646345,-370.87457867,0.00029863,7]
[344926792,1733886646356,-1384.3,0.00029863,7]
[344926793,1733886646366,-1272.02,0.00029863,7]
[344926794,1733886646377,-1384.3,0.00029863,7]
[344926795,1733886646386,-1272.02,0.00029863,7]
[344926796,1733886646396,-1384.42,0.00029863,7]
[344926797,1733886646406,-1272.02,0.00029863,7]
[344926798,1733886646415,-1272.02,0.00029863,7]
[344926799,1733886646425,-500.0,0.00029863,7]
[344926800,1733886646434,-500.0,0.00029863,7]
[344926801,1733886646447,-1272.02,0.00029863,7]
[344926802,1733886646456,-500.0,0.00029863,7]
[344926803,1733886646466,-1272.02,0.00029863,7]
[344926806,1733886646476,-500.0,0.00029863,7]
[344926807,1733886646485,-1272.02,0.00029863,7]
[344926808,1733886646495,-500.0,0.00029863,7]
[344926809,1733886646505,-1272.02,0.00029863,7]
[344926810,1733886646514,-356.31340316,0.00029863,7]
[344926811,1733886646524,-291.65243166,0.00029863,7]
[344926812,1733886646534,-1272.02,0.00029863,7]
[344926813,1733886646543,-1272.02,0.00029863,7]
[344926814,1733886646553,-1272.02,0.00029863,7]
[344926815,1733886646563,-1272.02,0.00029863,7]
[344926816,1733886646573,-1272.22533101,0.00029863,7]
[344926817,1733886646583,-500.0,0.00029863,7]
[344926818,1733886646592,-151.72896,0.00029863,7]
[344926819,1733886646602,-500.0,0.00029863,7]
[344926820,1733886646612,-500.0,0.00029863,7]
[344926821,1733886646621,-500.0,0.00029863,7]
[344926822,1733886646631,-500.0,0.00029863,7]
[344926823,1733886646641,-500.0,0.00029863,7]
[344926824,1733886646650,-500.0,0.00029863,7]
[344926825,1733886646660,-500.0,0.00029863,7]
[344926826,1733886646669,-500.0,0.00029863,7]
[344926827,1733886646679,-301.65681447,0.00029863,7]
[344926828,1733886646693,-500.0,0.00029863,7]
[344926829,1733886646702,-173.55327391,0.00029863,7]
[344926830,1733886646712,-792.272223,0.00029866,2]
[344926831,1733886646722,-151.59062923,0.0002987,2]
[344926833,1733886646734,-203.95110038,0.00029873,5]
[344926835,1733886646744,-242.4493817,0.00029873,5]
[344926837,1733886646754,-500.0,0.00029873,5]
[344926839,1733886646763,-202.81277593,0.00029873,5]
[344926841,1733886646773,-500.0,0.00029873,2]
[344926843,1733886646782,-500.0,0.00029873,5]
[344926845,1733886646791,-501.68166708,0.00029873,5]
[344926846,1733886646801,-160.41904528,0.00029873,5]
[344926847,1733886646810,-504.65735242,0.00029873,5]
[344926849,1733886646820,-419.48641852,0.00029873,5]
[344926850,1733886646830,-500.7813273,0.00029873,5]
[344926853,1733886646840,-162.86250865,0.00029873,5]
[344926854,1733886646849,-500.86084163,0.00029873,2]
[344926856,1733886646859,-500.0,0.00029873,5]
[344926858,1733886646869,-160.0187682,0.00029873,5]
[344926860,1733886646879,-500.0,0.00029873,5]
[344926862,1733886646888,-500.0,0.00029873,5]
[344926864,1733886646898,-500.0,0.00029873,5]
[344926866,1733886646908,-507.1353063,0.00029873,5]
[344926868,1733886646918,-502.67658723,0.00029873,5]
[344926869,1733886646927,-151.0,0.00029873,7]
[344926870,1733886646939,-248.67245,0.00029873,7]
[344926871,1733886646949,-248.67245,0.00029873,7]
[344926872,1733886646958,-1596.23807594,0.00029877,2]
[344926873,1733886646968,-1596.23807594,0.000299,2]
[344926874,1733886646978,-284.48,0.000299,31]
[344926875,1733886646988,-284.48,0.000299,31]
[344926876,1733886646999,-284.48,0.000299,31]
[344926877,1733886647009,-284.48,0.000299,31]
[344926878,1733886647019,-284.48,0.000299,31]
[344926879,1733886647029,-284.48,0.000299,31]
[344926880,1733886647039,-284.48,0.000299,31]
[344926881,1733886647049,-284.48,0.000299,31]
[344926882,1733886647059,-284.48,0.000299,31]
[344926883,1733886647070,-284.48,0.000299,31]
[344926884,1733886647079,-284.48,0.000299,31]
[344926885,1733886647089,-284.48,0.000299,31]
[344926886,1733886647099,-792.272223,0.00029917,2]
[344926887,1733886647108,-1596.23807594,0.00029922,2]
[344926888,1733886647119,-150.0,0.00029923,2]
[344926889,1733886647131,-150.0,0.00029943,2]
[344926890,1733886647144,-533.0,0.00029943,2]
[344926891,1733886647154,-2381.0,0.00029943,2]
[344926892,1733886647164,-2163.0,0.00029943,2]
[344926893,1733886647175,-1596.23807594,0.00029945,2]
[344926894,1733886647190,-151.0,0.00029956,15]
[344926895,1733886647201,-158.21589265,0.00029962,2]
[344926896,1733886647211,-205.19212823,0.00029968,7]
[344926897,1733886647221,-205.19,0.00029968,7]
[344926898,1733886647230,-153.89409618,0.00029968,7]
[344926899,1733886647243,-153.89409618,0.00029968,7]
[344926900,1733886647253,-153.89409618,0.00029968,7]
[344926901,1733886647263,-154.97299372,0.00029968,7]
[344926902,1733886647274,-154.97299372,0.00029968,7]
[344926903,1733886647285,-154.97299372,0.00029968,7]
[344926904,1733886647294,-154.97299372,0.00029968,7]
[344926905,1733886647304,-154.97299372,0.00029968,7]
[344926906,1733886647314,-154.97299372,0.00029968,7]
[344926907,1733886647323,-154.97299372,0.00029968,7]
[344926908,1733886647333,-154.97,0.00029968,7]
[344926909,1733886647342,-154.97299372,0.00029968,7]
[344926910,1733886647353,-154.97299372,0.00029968,7]
[344926911,1733886647365,-154.97299372,0.00029968,7]
[344926912,1733886647375,-154.97299372,0.00029968,7]
[344926913,1733886647385,-154.97299372,0.00029968,7]
[344926914,1733886647396,-154.97299372,0.00029968,7]
[344926915,1733886647406,-154.97299372,0.00029968,7]
[344926916,1733886647416,-154.97299372,0.00029968,7]
[344926917,1733886647426,-154.97299372,0.00029968,7]
[344926918,1733886647436,-154.97299372,0.00029968,7]
[344926919,1733886647449,-154.97299372,0.00029968,7]
[344926920,1733886647459,-151.0,0.00029968,7]
[344926921,1733886647469,-192.392878,0.00029968,7]
[344926922,1733886647479,-192.392878,0.00029968,7]
[344926923,1733886647489,-368.745008,0.00029968,7]
[344926924,1733886647499,-368.745008,0.00029968,7]
[344926925,1733886647509,-860.024577,0.00029968,7]
[344926926,1733886647519,-860.024577,0.00029968,7]
[344926927,1733886647530,-279.908559,0.00029968,7]
[344926928,1733886647540,-279.908559,0.00029968,7]
[344926929,1733886647551,-792.272223,0.00029968,2]
[344926930,1733886647561,-1596.23807594,0.00029968,2]
[344926931,1733886647571,-153.89,0.00029968,7]
[344926932,1733886647581,-154.97,0.00029968,7]
[344926933,1733886647591,-192.4,0.00029968,7]
[344926934,1733886647600,-535.82078175,0.00029988,2]
[344926935,1733886647611,-217.783949,0.0002999,7]
[344926936,1733886647621,-217.783949,0.0002999,7]
[344926937,1733886647632,-151.0,0.0002999,7]
[344926938,1733886647641,-151.0,0.0002999,7]
[344926939,1733886647651,-151.0,0.0002999,7]
[344926940,1733886647661,-2500.0,0.00029991,3]
[344926941,1733886647672,-500.0,0.00029997,2]
[344926942,1733886647681,-150.0,0.0003,2]
[344926943,1733886647694,-154.83,0.0003,2]
[344926944,1733886647705,-816.6,0.0003,2]
[344926945,1733886647716,-151.0,0.0003,13]
[344926946,1733886647726,-1844.44976493,0.0003,2]
[344926947,1733886647736,-204.033,0.0003,2]
[344926948,1733886647746,-151.0,0.0003,7]
[344926949,1733886647756,-151.0,0.0003,120]
[344926950,1733886647765,-187.0,0.0003,2]
[344926951,1733886647775,-187.5,0.0003,2]
[344926952,1733886647784,-2000.0,0.0003,2]
[344926953,1733886647793,-151.0,0.0003,120]
[344926954,1733886647803,-2500.0,0.0003,3]
[344926955,1733886647813,-284.48,0.0003,31]
[344926956,1733886647823,-284.48,0.0003,31]
[344926957,1733886647833,-284.48,0.0003,31]
[344926958,1733886647843,-284.48,0.0003,31]
[344926959,1733886647852,-284.48,0.0003,31]
[344926960,1733886647861,-284.48,0.0003,31]
[344926961,1733886647871,-284.48,0.0003,31]
[344926962,1733886647880,-284.48,0.0003,31]
[344926963,1733886647890,-284.48,0.0003,31]
[344926964,1733886647983,-284.48,0.0003,31]
[344926965,1733886647993,-284.48,0.0003,31]
[344926966,1733886648003,-284.48,0.0003,31]
[344926967,1733886648013,-284.48,0.0003,31]
[344926968,1733886648023,-284.48,0.0003,31]
[344926969,1733886648034,-284.48,0.0003,31]
[344926970,1733886648044,-284.48,0.0003,31]
[344926971,1733886648055,-284.48,0.0003,31]
[344926972,1733886648066,-284.48,0.0003,31]
[344926973,1733886648077,-284.48,0.0003,31]
[344926974,1733886648087,-284.48,0.0003,31]
[344926975,1733886648098,-284.48,0.0003,31]
[344926976,1733886648108,-284.48,0.0003,31]
[344926977,1733886648119,-284.48,0.0003,31]
[344926978,1733886648133,-284.48,0.0003,31]
[344926979,1733886648143,-9095.68433653,0.0003,120]
[344926980,1733886648153,-300.0,0.0003,14]
[344926981,1733886648162,-322.8,0.0003,120]
[344926982,1733886648173,-1000.0,0.0003,2]
[344926983,1733886648183,-151.0,0.0003,18]
[344926984,1733886648195,-151.0,0.0003,10]
[344926985,1733886648206,-151.0,0.0003,16]
[344926986,1733886648218,-151.0,0.0003,17]
[344926987,1733886648229,-588.331108,0.0003,7]
[344926988,1733886648240,-588.331108,0.0003,7]
[344926989,1733886648251,-179.943589,0.0003,2]
[344926990,1733886648261,-253.157785,0.0003,7]
[344926991,1733886648271,-151.0,0.0003,7]
[344926992,1733886648282,-441.150597,0.0003,7]
[344926993,1733886648293,-441.150597,0.0003,7]
[344926994,1733886648304,-175.0,0.0003,2]
[344926995,1733886648315,-151.0,0.0003,7]
[344926996,1733886648324,-319.698982,0.0003,7]
[344926997,1733886648335,-319.698982,0.0003,7]
[344926998,1733886648345,-528.6012,0.0003,2]
[344926999,1733886648355,-500.0,0.0003,32]
[344927000,1733886648366,-617.0,0.0003,2]
[344927001,1733886648376,-279.0,0.0003004,28]
[344927002,1733886648386,-217.783949,0.00030049,7]
[344927003,1733886648396,-217.783949,0.00030049,7]
[344927004,1733886648406,-151.0,0.00030049,7]
[344927005,1733886648417,-151.0,0.00030049,7]
[344927006,1733886648427,-151.0,0.00030049,7]
[344927007,1733886648439,-151.0,0.00030049,7]
[344927008,1733886648450,-151.0,0.00030049,7]
[344927009,1733886648461,-151.0,0.00030049,7]
[344927010,1733886648473,-151.0,0.00030049,7]
[344927011,1733886648483,-291.134651,0.00030049,7]
[344927012,1733886648495,-151.0,0.00030049,7]
[344927013,1733886648506,-3200.0,0.0003005,2]
[344927014,1733886648516,-652.807,0.0003005,7]
[344927015,1733886648527,-229.492589,0.0003005,7]
[344927016,1733886648538,-229.492589,0.0003005,7]
[344927017,1733886648549,-503.04582118,0.00030053,11]
[344927018,1733886648559,-500.0,0.00030054,11]
[344927019,1733886648569,-500.0,0.00030054,2]
[344927020,1733886648580,-160.0,0.00030059,5]
[344927021,1733886648591,-136920.57402133,0.00030062,2]
[344927022,1733886648601,-979.03783242,0.00030062,2]
[344927023,1733886648611,-150.01,0.00030062,2]
[344927024,1733886648622,-151.0,0.00030062,7]
[344927025,1733886648634,-190.908401,0.00030062,7]
[344927026,1733886648644,-2186291.40220354,0.00030062,10]
[344927027,1733886648972,-500.0,0.00029863,7]
[344927028,1733886648982,-500.0,0.00029863,7]
[344927029,1733886648992,-500.0,0.00029863,7]
[344927030,1733886649001,-254.9765431,0.00029863,7]
[344927031,1733886649014,-315.93644646,0.00029863,7]
[344927032,1733886649024,-500.0,0.00029863,7]
[344927033,1733886649034,-500.0,0.00029863,7]
[344927034,1733886649043,-500.0,0.00029863,7]
[344927035,1733886649053,-500.0,0.00029863,7]
[344927036,1733886649063,-500.0,0.00029863,7]
[344927037,1733886649073,-500.0,0.00029863,7]
[344927038,1733886649082,-500.0,0.00029863,7]
[344927039,1733886649092,-435.79486353,0.00029863,7]
[344927040,1733886649101,-500.0,0.00029863,7]
[344927041,1733886649111,-500.0,0.00029863,7]
[344927042,1733886649121,-500.0,0.00029863,7]
[344927043,1733886649132,-30614.14199156,0.00030062,10]
[344927044,1733886649147,-24454.18732421,0.00030062,10]
[344927066,1733887158085,160.458192,0.00013973,2]
[344927113,1733887832190,-300.0,0.00024989,2]
[344927114,1733887832200,-300.0,0.00024989,2]
[344927115,1733887832210,-1570.31093351,0.0002499,5]
[344927116,1733887832223,-599.990339,0.0002499,5]
[344927117,1733887832235,-2754.19669379,0.0002499,5]
[344927149,1733887839939,-75290.59780578,0.0002499,5]
[344927151,1733887839950,-5371.66128959,0.00026,5]
[344927153,1733887839960,-420.0,0.00027072,2]
[344927155,1733887839970,-420.0,0.00027488,2]
[344927157,1733887839980,-171.62,0.000275,30]
[344927158,1733887839989,-546.483,0.0002856,2]
[344927160,1733887839999,-8371.2623516,0.00028633,2]
[344927162,1733887840009,-376.33339144,0.00028948,2]
[344927164,1733887840018,-1283.5085072,0.00029048,2]
[344927165,1733887840028,-587.0,0.00029328,2]
[344927167,1733887840040,-303.21399002,0.00029763,2]
[344927169,1733887840049,-7005.5584015,0.00029773,2]
[344927211,1733887873104,505.0,0.00025999,60]
[344927214,1733888046665,221.938832,0.00013973,2]
[344927304,1733889038303,-175.374983,0.00028529,2]
[344927305,1733889038312,-523.522,0.0002856,2]
[344927307,1733889038323,-2007.26897176,0.00029352,2]
[344927309,1733889038332,-302.69733596,0.00029624,2]
[344927310,1733889038342,-158.21589264,0.00029763,2]
[344927311,1733889038352,-1000.0,0.00029789,2]
[344927312,1733889038363,-1000.0,0.00029814,2]
[344927313,1733889038372,-1000.0,0.00029849,2]
[344927314,1733889038382,-300.0,0.0002986,2]
[344927315,1733889038392,-300.0,0.00029861,2]
[344927316,1733889038402,-500.0,0.00029862,2]
[344927317,1733889038412,-500.0,0.00029862,2]
[344927318,1733889038422,-290.26967207,0.00029862,2]
[344927319,1733889038434,-164.3980773,0.00029862,2]
[344927320,1733889038444,-426.97658557,0.00029862,2]
[344927321,1733889038453,-500.0,0.00029862,7]
[344927322,1733889038462,-68468.10645416,0.00029863,2]
[344927323,1733889038472,-489.51891621,0.00029863,2]
[344927324,1733889038482,-151.841148,0.00029863,7]
[344927325,1733889038491,-500.0,0.00029863,7]
[344927326,1733889038501,-500.0,0.00029863,7]
[344927327,1733889038511,-549.43992422,0.00029863,7]
[344927328,1733889038521,-502.15406878,0.00029863,7]
[344927329,1733889038530,-513.66240585,0.00029863,7]
[344927330,1733889038539,-500.0,0.00029863,7]
[344927331,1733889038550,-509.40577235,0.00029863,7]
[344927332,1733889038560,-500.0,0.00029863,7]
[344927333,1733889038571,-506.70592657,0.00029863,7]
[344927334,1733889038582,-500.0,0.00029863,7]
[344927335,1733889038592,-500.0,0.00029863,7]
[344927336,1733889038602,-503.24288197,0.00029863,7]
[344927337,1733889038612,-500.52512731,0.00029863,7]
[344927338,1733889038623,-503.00097507,0.00029863,7]
[344927339,1733889038639,-500.0,0.00029863,7]
[344927340,1733889038648,-500.0,0.00029863,7]
[344927341,1733889038658,-500.0,0.00029863,7]
[344927342,1733889038669,-500.0,0.00029863,7]
[344927343,1733889038680,-500.0,0.00029863,7]
[344927344,1733889038690,-500.0,0.00029863,7]
[344927345,1733889038700,-500.0,0.00029863,7]
[344927346,1733889038710,-615.35993336,0.00029863,7]
[344927347,1733889038720,-500.0,0.00029863,7]
[344927348,1733889038729,-507.66193599,0.00029863,7]
[344927349,1733889038739,-491.60879851,0.00029863,7]
[344927350,1733889038749,-554.83598038,0.00029863,7]
[344927351,1733889038758,-503.02213901,0.00029863,7]
[344927352,1733889038768,-500.0,0.00029863,7]
[344927353,1733889038778,-500.0,0.00029863,7]
[344927354,1733889038788,-505.31073837,0.00029863,7]
[344927355,1733889038797,-500.0,0.00029863,7]
[344927356,1733889038807,-500.0,0.00029863,7]
[344927357,1733889038817,-500.0,0.00029863,7]
[344927358,1733889038826,-500.0,0.00029863,7]
[344927359,1733889038836,-500.0,0.00029863,7]
[344927360,1733889038846,-341.44119624,0.00029863,7]
[344927361,1733889038855,-500.0,0.00029863,7]
[344927362,1733889038865,-500.0,0.00029863,7]
[344927363,1733889038875,-500.0,0.00029863,7]
[344927364,1733889038889,-500.0,0.00029863,7]
[344927365,1733889038898,-591.16038383,0.00029863,7]
[344927366,1733889038908,-328.65312459,0.00029863,7]
[344927367,1733889038917,-500.0,0.00029863,7]
[344927368,1733889038927,-500.0,0.00029863,7]
[344927369,1733889038941,-500.0,0.00029863,7]
[344927370,1733889038951,-500.0,0.00029863,7]
[344927371,1733889038962,-215.23618979,0.00029863,7]
[344927372,1733889038973,-218.95333721,0.00029863,7]
[344927373,1733889038983,-500.0,0.00029863,7]
[344927374,1733889038993,-500.0,0.00029863,7]
[344927375,1733889039003,-500.0,0.00029863,7]
[344927376,1733889039013,-533.99781734,0.00029863,7]
[344927377,1733889039023,-523.26345905,0.00029863,7]
[344927378,1733889039034,-500.0,0.00029863,7]
[344927379,1733889039043,-503.33953758,0.00029863,7]
[344927380,1733889039053,-500.0,0.00029863,7]
[344927381,1733889039062,-350.93894056,0.00029863,7]
[344927382,1733889039072,-500.0,0.00029863,7]
[344927383,1733889039082,-500.0,0.00029863,7]
[344927384,1733889039092,-500.0,0.00029863,7]
[344927385,1733889039102,-333.37280591,0.00029863,7]
[344927386,1733889039111,-500.0,0.00029863,7]
[344927387,1733889039121,-500.0,0.00029863,7]